bitfinex/quotes_BTCUSD_20260310
["timestamp","ask_amount","ask_price","bid_price","bid_amount"]
[1773135299316,0.00562,71216.0,71208.0,0.07021682]
[1773135299503,0.00144,71213.0,71208.0,0.12436034]
[1773135299714,0.00144,71215.0,71209.0,0.05424248]
[1773135299935,0.00144,71214.0,71211.0,0.05424248]
[1773135300220,0.03,71218.0,71211.0,0.05424248]
[1773135300374,0.00144,71214.0,71211.0,0.05424248]
[1773135300577,0.03,71218.0,71211.0,0.05424248]
[1773135300776,0.45486777,71222.0,71212.0,0.07021288]
[1773135300777,0.03144,71217.0,71212.0,0.07021288]
[1773135301000,0.03144,71217.0,71213.0,0.05424248]
[1773135301478,0.00144,71219.0,71214.0,0.44275233]
[1773135301799,0.00144,71218.0,71212.0,0.07021288]
[1773135302768,0.00144,71218.0,71194.0,0.26240196]
[1773135302769,0.03,71216.0,71194.0,0.26240196]
[1773135303152,0.03,71210.0,71196.0,0.05433731]
[1773135303288,0.03,71210.0,71194.0,0.07022998]
[1773135303289,0.00144,71209.0,71199.0,0.05455731]
[1773135304203,0.00144,71209.0,71192.0,0.07023063]
[1773135304204,0.48347538,71207.0,71174.0,0.00022]
[1773135304389,0.03,71201.0,71180.0,0.07024349]
[1773135304588,0.03,71195.0,71178.0,0.07024624]
[1773135304821,0.03,71193.0,71182.0,0.05443934]
[1773135305020,0.00144,71192.0,71184.0,0.46654876]
[1773135305221,0.00144,71197.0,71186.0,0.46654876]
[1773135305459,0.45347538,71214.0,71188.0,0.05443934]
[1773135305677,0.00562,71216.0,71192.0,0.05453294]
[1773135305678,0.45347538,71212.0,71192.0,0.05453294]
[1773135305871,0.03,71211.0,71195.0,0.46654876]
[1773135306058,0.00144,71210.0,71198.0,0.05453294]
[1773135306216,0.001,71209.0,71201.0,0.46654876]
[1773135306421,0.001,71209.0,71202.0,0.05453294]
[1773135306615,0.00144,71210.0,71202.0,0.05453294]
[1773135306837,0.03144,71210.0,71203.0,0.07022176]
[1773135307969,0.03,71209.0,71203.0,0.07022176]
[1773135308904,0.03,71208.0,71203.0,0.07022176]
[1773135310037,0.00144,71210.0,71193.0,0.07023102]
[1773135310243,0.00144,71210.0,71163.0,0.33745338]
[1773135310244,0.03,71200.0,71168.0,0.49302977]
[1773135310452,0.07021584,71209.0,71174.0,0.46654876]
[1773135310453,0.03,71193.0,71174.0,0.46654876]
[1773135310680,0.03,71189.0,71175.0,0.49280977]
[1773135310894,0.03,71189.0,71177.0,0.46654876]
[1773135311107,0.00144,71188.0,71178.0,0.49280977]
[1773135311501,0.00144,71188.0,71184.0,0.00022]
[1773135312226,0.03,71205.0,71185.0,0.46654876]
[1773135312420,0.00144,71204.0,71187.0,0.03639702]
[1773135312631,0.03,71200.0,71188.0,0.50294578]
[1773135312977,0.03,71200.0,71188.0,0.57318225]
[1773135313193,0.03,71200.0,71189.0,0.03639702]
[1773135313651,0.03,71199.0,71189.0,0.03639702]
[1773135314235,0.00144,71198.0,71189.0,0.03639702]
[1773135314683,0.03144,71198.0,71189.0,0.03639702]
[1773135315041,0.03144,71198.0,71189.0,0.10663164]
[1773135315667,0.03,71197.0,71189.0,0.10663164]
[1773135316858,0.03,71196.0,71188.0,0.48133116]
[1773135317057,0.03,71196.0,71186.0,0.09649756]
[1773135317058,0.03,71196.0,71189.0,0.07023462]
[1773135317264,0.03,71196.0,71184.0,0.00022]
[1773135317465,0.03,71194.0,71185.0,0.46654876]
[1773135317766,0.03,71194.0,71186.0,0.49280977]
[1773135318295,0.00144,71195.0,71186.0,0.46654876]
[1773135318635,0.00144,71195.0,71189.0,0.02626101]
[1773135318915,0.00144,71197.0,71189.0,0.02626101]
[1773135319315,0.00144,71197.0,71189.0,0.09649638]
[1773135319470,0.00144,71197.0,71189.0,0.07023537]
[1773135320093,0.00144,71197.0,71190.0,0.02731144]
[1773135320341,0.00144,71197.0,71191.0,0.02731144]
[1773135320542,0.00023,71200.0,71192.0,0.02731144]
[1773135320725,0.00144,71205.0,71195.0,0.46654876]
[1773135320917,0.00144,71206.0,71198.0,0.02731144]
[1773135321236,0.00144,71206.0,71191.0,0.55801113]
[1773135321237,0.0002,71209.0,71201.0,0.07022373]
[1773135321395,0.00164,71209.0,71203.0,0.02731144]
[1773135321784,0.00164,71209.0,71201.0,0.07022373]
[1773135322506,0.00164,71209.0,71199.0,0.07022566]
[1773135323149,0.03164,71209.0,71199.0,0.07022566]
[1773135324738,0.03,71208.0,71201.0,0.46654876]
[1773135324967,0.03,71208.0,71202.0,0.02928951]
[1773135325165,0.03144,71208.0,71199.0,0.07022566]
[1773135325565,0.03144,71208.0,71198.0,0.07022669]
[1773135325789,0.03,71207.0,71198.0,0.07022669]
[1773135326001,0.03,71207.0,71201.0,0.001]
[1773135326326,0.03,71207.0,71198.0,0.07022669]
[1773135327089,0.03144,71207.0,71198.0,0.07022669]
[1773135327289,0.03,71206.0,71198.0,0.07022669]
[1773135327492,0.03,71206.0,71199.0,0.02974348]
[1773135328005,0.03,71206.0,71198.0,0.07022669]
[1773135328165,0.03,71204.0,71198.0,0.07022669]
[1773135328862,0.03,71204.0,71198.0,0.10040974]
[1773135329209,0.00144,71207.0,71198.0,0.07022669]
[1773135329453,0.00144,71207.0,71201.0,0.10040678]
[1773135330364,0.0002,71209.0,71201.0,0.10040678]
[1773135330569,0.00144,71208.0,71201.0,0.10040678]
[1773135331112,0.03,71211.0,71201.0,0.07022373]
[1773135331317,0.45347538,71213.0,71200.0,0.07022382]
[1773135331559,0.45470059,71213.0,71201.0,0.00101]
[1773135332174,0.00079674,71212.0,71199.0,0.07022543]
[1773135332399,0.05549795,71206.0,71192.0,0.0702319]
[1773135332586,0.02549795,71201.0,71184.0,0.07046028]
[1773135332826,0.03,71196.0,71186.0,0.07023838]
[1773135333095,0.03,71196.0,71184.0,0.07046028]
[1773135333096,0.03144,71196.0,71188.0,0.07023632]
[1773135333241,0.03144,71196.0,71187.0,0.07023691]
[1773135333676,0.03144,71196.0,71189.0,0.07045548]
[1773135333884,0.03144,71196.0,71189.0,0.00022]
[1773135334102,0.00144,71196.0,71189.0,0.00022]
[1773135334302,0.03,71195.0,71189.0,0.00022]
[1773135334503,0.03,71195.0,71189.0,0.07045553]
[1773135334744,0.03,71195.0,71189.0,0.07045492]
[1773135335300,0.00144,71196.0,71189.0,0.07045492]
[1773135335783,0.00144,71196.0,71189.0,0.00022]
[1773135336852,0.001,71195.0,71189.0,0.00022]
[1773135337260,0.00144,71196.0,71189.0,0.00022]
[1773135337463,0.00144,71195.0,71189.0,0.00022]
[1773135338514,0.00244,71195.0,71189.0,0.00022]
[1773135338953,0.45539628,71194.0,71184.0,0.00022]
[1773135339152,0.00244,71195.0,71175.0,0.07047875]
[1773135339153,0.03,71187.0,71177.0,0.07024715]
[1773135339372,0.47281559,71187.0,71175.0,0.07047896]
[1773135339577,0.47281559,71187.0,71175.0,0.00023]
[1773135339792,0.03,71183.0,71175.0,0.00023]
[1773135340595,0.439477,71198.0,71177.0,0.03154739]
[1773135340770,0.00144,71196.0,71175.0,0.07191839]
[1773135340973,0.00144,71196.0,71179.0,0.46787962]
[1773135341218,0.00144,71196.0,71182.0,0.03154739]
[1773135341421,0.00144,71196.0,71184.0,0.46787962]
[1773135341622,0.00144,71196.0,71185.0,0.03154739]
[1773135341822,0.00144,71196.0,71186.0,0.07023853]
[1773135342383,0.0002,71197.0,71189.0,0.03154739]
[1773135343220,0.00164,71197.0,71189.0,0.03154739]
[1773135343645,0.0002,71197.0,71189.0,0.03154739]
[1773135343845,0.00144,71196.0,71190.0,0.07023458]
[1773135344213,0.0002,71197.0,71190.0,0.07023458]
[1773135344492,0.00144,71196.0,71190.0,0.07023458]
[1773135344764,0.0002,71197.0,71189.0,0.00022]
[1773135344765,0.0302,71197.0,71189.0,0.00022]
[1773135344968,0.03,71194.0,71187.0,0.07023558]
[1773135345260,0.46098029,71194.0,71187.0,0.07023558]
[1773135346607,0.46098029,71194.0,71183.0,0.07023853]
[1773135346764,0.03,71194.0,71183.0,0.07023853]
[1773135346950,0.03,71193.0,71185.0,0.49942701]
[1773135347150,0.03,71193.0,71185.0,0.46787962]
[1773135347391,0.0002,71197.0,71188.0,0.03154739]
[1773135347587,0.0002,71197.0,71183.0,0.07023853]
[1773135347588,0.0002,71197.0,71190.0,0.03154739]
[1773135348579,0.01653114,71205.0,71183.0,0.07123853]
[1773135348580,0.01797114,71209.0,71184.0,0.0702405]
[1773135348886,0.42392064,71204.0,71184.0,0.0702405]
[1773135349097,0.42213388,71202.0,71184.0,0.0702405]
[1773135349268,0.03,71199.0,71184.0,0.0702405]
[1773135349474,0.45213388,71197.0,71184.0,0.0702405]
[1773135349676,0.45213388,71197.0,71184.0,0.56974913]
[1773135351200,0.45213388,71197.0,71184.0,0.56996913]
[1773135351449,0.45233388,71197.0,71184.0,0.57096913]
[1773135351778,0.45233388,71197.0,71184.0,0.0704605]
[1773135351779,0.47003104,71197.0,71184.0,0.0704605]
[1773135352544,0.47003104,71197.0,71184.0,0.0714605]
[1773135352944,0.47003104,71197.0,71184.0,0.0724605]
[1773135354307,0.03,71193.0,71182.0,0.0702405]
[1773135354508,0.03,71191.0,71182.0,0.0702405]
[1773135354721,0.00144,71190.0,71182.0,0.0702405]
[1773135356532,0.00144,71190.0,71182.0,0.0722405]
[1773135357065,0.41289356,71196.0,71183.0,0.49950863]
[1773135357221,0.00144,71196.0,71186.0,0.03163707]
[1773135357423,0.00048,71222.0,71190.0,0.03163707]
[1773135357699,0.00144,71219.0,71194.0,0.46787156]
[1773135357852,0.07020646,71219.0,71197.0,0.03163707]
[1773135358050,0.02008978,71222.0,71195.0,0.00144]
[1773135358051,0.00144,71215.0,71201.0,0.03163707]
[1773135358232,0.00144,71214.0,71204.0,0.46787156]
[1773135358443,0.00144,71214.0,71206.0,0.49950863]
[1773135359074,0.00144,71213.0,71205.0,0.07021926]
[1773135359276,0.00144,71213.0,71207.0,0.49950863]
[1773135360273,0.03,71215.0,71207.0,0.49950863]
[1773135360475,0.00048,71222.0,71207.0,0.46787156]
[1773135360675,0.00048,71222.0,71210.0,0.03163707]
[1773135360869,0.00048,71222.0,71213.0,0.46787156]
[1773135361066,0.00048,71222.0,71215.0,0.56971855]
[1773135361504,0.03,71227.0,71215.0,0.07020992]
[1773135361706,0.00101,71230.0,71219.0,0.46787156]
[1773135361888,0.00144,71229.0,71222.0,0.03163707]
[1773135362110,0.00144,71229.0,71222.0,0.49950863]
[1773135362411,0.00144,71228.0,71215.0,0.07020992]
[1773135362700,0.00101,71230.0,71217.0,0.03163707]
[1773135362904,0.00144,71228.0,71217.0,0.03163707]
[1773135363080,0.46738137,71226.0,71206.0,0.0702188]
[1773135363288,0.03,71221.0,71209.0,0.46787156]
[1773135363459,0.03,71221.0,71207.0,0.00144]
[1773135363460,0.03,71221.0,71212.0,0.03163707]
[1773135363655,0.03,71221.0,71213.0,0.46419944]
[1773135363852,0.07120517,71230.0,71207.0,0.00144]
[1773135363853,0.00101,71230.0,71207.0,0.00144]
[1773135364084,0.00144,71229.0,71211.0,0.46419944]
[1773135364287,0.03144,71229.0,71214.0,0.03163707]
[1773135364536,0.03,71229.0,71215.0,0.46419944]
[1773135364759,0.03,71229.0,71217.0,0.49583651]
[1773135364908,0.03,71229.0,71219.0,0.46419944]
[1773135365110,0.03,71229.0,71220.0,0.07020499]
[1773135365310,0.03101,71230.0,71220.0,0.07020499]
[1773135365585,0.03101,71230.0,71220.0,0.5660415]
[1773135365821,0.03101,71230.0,71221.0,0.03163707]
[1773135366144,0.03101,71230.0,71222.0,0.03163707]
[1773135366340,0.031,71229.0,71220.0,0.07020499]
[1773135366543,0.47945541,71229.0,71217.0,0.07020705]
[1773135366995,0.00101,71230.0,71218.0,0.03163707]
[1773135366996,0.00201,71230.0,71218.0,0.03163707]
[1773135367178,0.00144,71235.0,71220.0,0.46419944]
[1773135367384,0.00144,71235.0,71223.0,0.03163707]
[1773135367715,0.00144,71235.0,71217.0,0.07020705]
[1773135367716,0.02241106,71232.0,71217.0,0.07020705]
[1773135367917,0.47945541,71229.0,71217.0,0.07020705]
[1773135368253,0.44945541,71227.0,71212.0,0.56604878]
[1773135368429,0.47945541,71224.0,71208.0,0.49583651]
[1773135368632,0.47945541,71224.0,71209.0,0.49583651]
[1773135368830,0.47945541,71224.0,71205.0,0.00144]
[1773135368831,0.47945541,71224.0,71210.0,0.03163707]
[1773135369044,0.03,71224.0,71212.0,0.49583651]
[1773135369241,0.03,71224.0,71213.0,0.5660484]
[1773135369442,0.03,71223.0,71213.0,0.5660484]
[1773135370464,0.47217757,71227.0,71213.0,0.5660484]
[1773135370465,0.03,71222.0,71215.0,0.46419944]
[1773135370668,0.001,71227.0,71216.0,0.03418246]
[1773135370871,0.00144,71229.0,71218.0,0.03418246]
[1773135371068,0.00144,71229.0,71218.0,0.4983819]
[1773135371267,0.00144,71229.0,71219.0,0.07020598]
[1773135371584,0.00144,71229.0,71219.0,0.56858788]
[1773135371786,0.001,71223.0,71219.0,0.53440542]
[1773135371988,0.001,71223.0,71214.0,0.46419944]
[1773135372192,0.03,71228.0,71216.0,0.46419944]
[1773135372388,0.03,71228.0,71216.0,0.4983819]
[1773135372972,0.0002,71224.0,71211.0,0.00144]
[1773135373226,0.07020598,71219.0,71208.0,0.53441541]
[1773135373394,0.07020598,71219.0,71203.0,0.0702208]
[1773135373395,0.03,71218.0,71203.0,0.0702208]
[1773135373593,0.03,71218.0,71201.0,0.07022373]
[1773135373594,0.03,71212.0,71201.0,0.07022373]
[1773135374088,0.47945541,71212.0,71201.0,0.07022373]
[1773135374295,0.48089541,71212.0,71201.0,0.07022373]
[1773135374492,0.48089541,71212.0,71201.0,0.07123373]
[1773135375706,0.48089541,71212.0,71195.0,0.07022917]
[1773135375707,0.03,71204.0,71193.0,0.0002839]
[1773135375909,0.03,71198.0,71188.0,0.07585631]
[1773135376102,0.03,71198.0,71189.0,0.07045551]
[1773135377094,0.03,71197.0,71189.0,0.07045551]
[1773135377712,0.03,71197.0,71189.0,0.53465495]
[1773135378145,0.00144,71214.0,71193.0,0.46419944]
[1773135378444,0.00144,71213.0,71198.0,0.03418246]
[1773135378656,0.00144,71213.0,71201.0,0.46419944]
[1773135378804,0.00144,71213.0,71194.0,0.00144]
[1773135378805,0.00144,71213.0,71204.0,0.03418246]
[1773135379006,0.00144,71213.0,71205.0,0.46419944]
[1773135379208,0.00144,71213.0,71206.0,0.03418246]
[1773135379483,0.00144,71216.0,71207.0,0.46419944]
[1773135379690,0.07020547,71220.0,71207.0,0.46419944]
[1773135379691,0.0002,71224.0,71208.0,0.07021682]
[1773135379833,0.0002,71224.0,71205.0,0.03418246]
[1773135379834,0.44945541,71223.0,71205.0,0.03418246]
[1773135380051,0.44945541,71221.0,71206.0,0.0702188]
[1773135380229,0.03,71218.0,71206.0,0.0702188]
[1773135380992,0.03,71218.0,71208.0,0.03418246]
[1773135381148,0.00144,71219.0,71209.0,0.46419944]
[1773135381964,0.00144,71219.0,71210.0,0.07021485]
[1773135382161,0.00144,71219.0,71211.0,0.46419944]
[1773135383009,0.00144,71219.0,71211.0,0.29213232]
[1773135383309,0.10164653,71219.0,71209.0,0.07021485]
[1773135383462,0.03144,71219.0,71209.0,0.07021485]
[1773135383816,0.03144,71219.0,71197.0,0.07022688]
[1773135383817,0.07020697,71218.0,71197.0,0.07022688]
[1773135384018,0.03144,71217.0,71197.0,0.46419944]
[1773135384243,0.03144,71217.0,71201.0,0.46419944]
[1773135384385,0.03144,71217.0,71209.0,0.15]
[1773135384386,0.03,71217.0,71209.0,0.15]
[1773135384575,0.03144,71217.0,71209.0,0.15]
[1773135385033,0.00144,71217.0,71209.0,0.15]
[1773135385231,0.03,71211.0,71190.0,0.46419944]
[1773135385429,0.00244,71217.0,71188.0,0.24265545]
[1773135385430,0.47945541,71199.0,71188.0,0.00562]
[1773135385606,0.15796077,71200.0,71166.0,0.00022]
[1773135385607,0.03,71178.0,71166.0,0.00022]
[1773135385781,0.03,71178.0,71169.0,0.07047468]
[1773135385977,0.03,71178.0,71169.0,0.46441944]
[1773135386426,0.10024689,71178.0,71169.0,0.46441944]
[1773135386661,0.07024447,71180.0,71169.0,0.46441944]
[1773135386662,0.03,71176.0,71169.0,0.46441944]
[1773135387023,0.15796077,71200.0,71169.0,0.46441944]
[1773135387230,0.1634566,71198.0,71173.0,0.46419944]
[1773135387425,0.1634566,71198.0,71175.0,0.4983819]
[1773135387609,0.03,71195.0,71175.0,0.4983819]
[1773135387972,0.1918805,71191.0,71175.0,0.4983819]
[1773135388145,0.03,71189.0,71175.0,0.4983819]
[1773135388358,0.03,71185.0,71169.0,0.00022]
[1773135388801,0.03,71183.0,71170.0,0.46419944]
[1773135389017,0.03,71183.0,71172.0,0.4983819]
[1773135389217,0.03,71183.0,71170.0,0.46419944]
[1773135389563,0.03,71182.0,71170.0,0.46419944]
[1773135390418,0.03,71180.0,71170.0,0.46419944]
[1773135390923,0.03,71180.0,71171.0,0.46563944]
[1773135391307,0.03,71180.0,71171.0,0.00144]
[1773135391494,0.08947064,71178.0,71171.0,0.00144]
[1773135391692,0.03,71178.0,71171.0,0.00144]
[1773135391892,0.0824333,71176.0,71169.0,0.00166]
[1773135392294,0.0824333,71176.0,71169.0,0.00022]
[1773135392502,0.03,71174.0,71169.0,0.00022]
[1773135392836,0.03,71172.0,71169.0,0.00022]
[1773135393050,0.03,71172.0,71168.0,0.00022]
[1773135393051,0.03,71170.0,71161.0,0.45621334]
[1773135393251,0.0524333,71170.0,71159.0,0.00144]
[1773135393477,0.44945541,71170.0,71157.0,0.46419944]
[1773135393628,0.03,71165.0,71156.0,0.00144]
[1773135393847,0.03,71163.0,71156.0,0.00144]
[1773135394046,0.05028053,71160.0,71150.0,0.0096769]
[1773135394225,0.03,71153.0,71143.0,0.43573086]
[1773135394431,0.03,71151.0,71143.0,0.43573086]
[1773135394638,0.03,71151.0,71137.0,0.07040674]
[1773135394639,0.03,71149.0,71138.0,0.07028507]
[1773135395087,0.03,71149.0,71139.0,0.00144]
[1773135395217,0.08028053,71149.0,71137.0,0.50613768]
[1773135395431,0.03,71147.0,71137.0,0.00012]
[1773135395636,0.08031197,71147.0,71137.0,0.07040624]
[1773135395842,0.08031197,71147.0,71138.0,0.43573086]
[1773135396728,0.1505896,71147.0,71139.0,0.00144]
[1773135397525,0.03,71145.0,71139.0,0.00144]
[1773135397741,0.03,71145.0,71137.0,0.00012]
[1773135397916,0.03,71141.0,71138.0,0.00144]
[1773135398454,0.08021282,71139.0,71135.0,0.0001258]
[1773135398743,0.03,71139.0,71136.0,0.00144]
[1773135398977,0.07028411,71140.0,71137.0,0.43573086]
[1773135399806,0.07028411,71140.0,71135.0,0.0015658]
[1773135400001,0.03,71143.0,71136.0,0.43573086]
[1773135400424,0.03,71143.0,71137.0,0.00022]
[1773135401726,0.45240743,71157.0,71138.0,0.43573086]
[1773135401912,0.0702553,71169.0,71139.0,0.07028493]
[1773135402114,0.45240743,71166.0,71140.0,0.47142829]
[1773135402316,0.45240743,71157.0,71141.0,0.43717086]
[1773135402514,0.04281322,71156.0,71141.0,0.43717086]
[1773135402862,0.03,71155.0,71141.0,0.43717086]
[1773135403567,0.03,71155.0,71142.0,0.43573086]
[1773135403752,0.03,71154.0,71142.0,0.43573086]
[1773135403896,0.07281322,71152.0,71142.0,0.43573086]
[1773135404100,0.07281322,71152.0,71143.0,0.07028098]
[1773135404331,0.03,71152.0,71144.0,0.43573086]
[1773135404735,0.45240743,71157.0,71143.0,0.07028098]
[1773135404736,0.07025037,71174.0,71146.0,0.04091954]
[1773135404934,0.03,71173.0,71149.0,0.43573086]
[1773135405140,0.03,71173.0,71151.0,0.43573086]
[1773135405362,0.03,71171.0,71153.0,0.43573086]
[1773135405567,0.03,71171.0,71155.0,0.43573086]
[1773135406292,0.03,71169.0,71156.0,0.07026814]
[1773135406488,0.03,71169.0,71157.0,0.43573086]
[1773135408284,0.03,71167.0,71158.0,0.07026616]
[1773135408512,0.03,71167.0,71158.0,0.51843932]
[1773135408921,0.03,71167.0,71159.0,0.00144]
[1773135409644,0.03,71165.0,71154.0,0.00144]
[1773135409844,0.07025629,71168.0,71154.0,0.00144]
[1773135409845,0.03,71157.0,71154.0,0.00144]
[1773135410130,0.03,71157.0,71151.0,0.00144]
[1773135410551,0.1002677,71157.0,71151.0,0.00144]
[1773135410915,0.03,71156.0,71148.0,0.07027604]
[1773135411098,0.03,71156.0,71149.0,0.00144]
[1773135411708,0.03,71156.0,71140.0,0.07028362]
[1773135411906,0.03,71152.0,71142.0,0.07172197]
[1773135412271,0.03,71146.0,71141.0,0.00022]
[1773135412399,0.07028098,71143.0,71137.0,0.00022]
[1773135412602,0.0704773,71140.0,71137.0,0.00022]
[1773135412809,0.07026518,71159.0,71137.0,0.07194632]
[1773135413135,0.42002077,71155.0,71140.0,0.44817316]
[1773135413339,0.0404773,71154.0,71140.0,0.44817316]
[1773135413519,0.03,71153.0,71140.0,0.44817316]
[1773135414331,0.03,71153.0,71148.0,0.00022]
[1773135414531,0.14075087,71151.0,71148.0,0.00022]
[1773135414949,0.0404773,71148.0,71140.0,0.00022]
[1773135415243,0.03,71143.0,71141.0,0.00144]
[1773135415433,0.03,71143.0,71140.0,0.00022]
[1773135415607,0.0704773,71143.0,71137.0,0.07050666]
[1773135416018,0.03,71143.0,71132.0,0.45379316]
[1773135416218,0.42002077,71147.0,71136.0,0.00144]
[1773135416219,0.03,71142.0,71136.0,0.00144]
[1773135416666,0.10028226,71142.0,71135.0,0.0001258]
[1773135416921,0.10028226,71142.0,71137.0,0.00144]
[1773135417122,0.03,71140.0,71137.0,0.00144]
[1773135418648,0.03,71140.0,71135.0,0.07041449]
[1773135419052,0.07028137,71143.0,71135.0,0.0001258]
[1773135419053,0.03,71137.0,71135.0,0.0001258]
[1773135419994,0.03,71136.0,71135.0,0.0001258]
[1773135420376,0.07027967,71145.0,71135.0,0.0001258]
[1773135420617,0.07027967,71145.0,71135.0,0.44829896]
[1773135420783,0.42002077,71143.0,71133.0,0.00022]
[1773135421086,0.03,71137.0,71133.0,0.00022]
[1773135421296,0.03,71137.0,71134.0,0.00144]
[1773135421789,0.03,71137.0,71133.0,0.00022]
[1773135421996,0.45002077,71137.0,71132.0,0.07735183]
[1773135422175,0.03,71135.0,71132.0,0.07591183]
[1773135422378,0.07026521,71159.0,71133.0,0.48683515]
[1773135422680,0.07170345,71161.0,71141.0,0.44817316]
[1773135423036,0.49028422,71161.0,71144.0,0.48683515]
[1773135423237,0.03,71160.0,71147.0,0.03866199]
[1773135423545,0.03,71160.0,71150.0,0.48683515]
[1773135423670,0.03,71160.0,71151.0,0.00144]
[1773135423867,0.03,71160.0,71152.0,0.42139407]
[1773135424279,0.03,71162.0,71152.0,0.42139407]
[1773135425420,0.03,71160.0,71152.0,0.49166528]
[1773135426641,0.03,71159.0,71152.0,0.49166528]
[1773135426839,0.07026238,71162.0,71152.0,0.53032727]
[1773135427097,0.18228584,71178.0,71155.0,0.42139407]
[1773135427297,0.07047989,71175.0,71158.0,0.03866199]
[1773135427496,0.07047989,71175.0,71161.0,0.42139407]
[1773135427696,0.03,71174.0,71161.0,0.42139407]
[1773135427891,0.03,71172.0,71161.0,0.42139407]
[1773135428066,0.51477227,71166.0,71156.0,0.00144]
[1773135428686,0.03,71164.0,71156.0,0.00144]
[1773135429012,0.47429497,71164.0,71152.0,0.00022]
[1773135429155,0.03,71160.0,71152.0,0.07049189]
[1773135429369,0.03,71160.0,71153.0,0.00144]
[1773135429580,0.00023,71175.0,71153.0,0.00144]
[1773135429842,0.07025131,71174.0,71154.0,0.07027011]
[1773135430004,0.00023,71175.0,71158.0,0.42139407]
[1773135430218,0.07047956,71175.0,71161.0,0.03726738]
[1773135430563,0.07047956,71175.0,71162.0,0.42139407]
[1773135430773,0.07147956,71175.0,71162.0,0.42139407]
[1773135431071,0.44429497,71174.0,71162.0,0.42283407]
[1773135431872,0.07025135,71173.0,71162.0,0.49309622]
[1773135432254,0.07025135,71173.0,71162.0,0.49165622]
[1773135432600,0.00023,71175.0,71162.0,0.49309622]
[1773135432805,0.0002,71178.0,71162.0,0.07170215]
[1773135432939,0.0002,71178.0,71166.0,0.03726738]
[1773135433169,0.0002,71178.0,71167.0,0.42139407]
[1773135433388,0.0002,71178.0,71169.0,0.42139407]
[1773135433759,0.0002,71178.0,71170.0,0.05217857]
[1773135433975,0.0002,71178.0,71170.0,0.46624454]
[1773135434579,0.07023563,71189.0,71173.0,0.42139407]
[1773135434783,0.07167474,71190.0,71175.0,0.42139407]
[1773135434986,0.44991497,71188.0,71175.0,0.42139407]
[1773135435488,0.00562,71188.0,71175.0,0.45866145]
[1773135435900,0.00562,71188.0,71177.0,0.42139407]
[1773135436595,0.000408,71192.0,71181.0,0.42139407]
[1773135436797,0.000408,71192.0,71183.0,0.41316518]
[1773135437134,0.51452856,71191.0,71182.0,0.00144]
[1773135437838,0.07023754,71187.0,71176.0,0.00144]
[1773135438074,0.44429497,71184.0,71176.0,0.00144]
[1773135438446,0.44429497,71184.0,71175.0,0.07168992]
[1773135439193,0.44429497,71184.0,71175.0,0.07024992]
[1773135439341,0.03699998,71181.0,71168.0,0.00144]
[1773135439522,0.48129495,71180.0,71168.0,0.00144]
[1773135439729,0.03,71177.0,71169.0,0.00144]
[1773135439929,0.03,71175.0,71169.0,0.00144]
[1773135440128,0.03,71175.0,71163.0,0.42139407]
[1773135440329,0.03,71171.0,71160.0,0.00562]
[1773135440555,0.47429497,71169.0,71160.0,0.00562]
[1773135440970,0.51129495,71169.0,71160.0,0.00562]
[1773135441910,0.07024839,71176.0,71153.0,0.07027061]
[1773135441911,0.03,71167.0,71153.0,0.07027061]
[1773135442149,0.13725923,71165.0,71154.0,0.00144]
[1773135442372,0.03,71165.0,71155.0,0.42139407]
[1773135442718,0.03,71165.0,71157.0,0.42139407]
[1773135443807,0.07025665,71168.0,71157.0,0.42139407]
[1773135444094,0.07025665,71168.0,71158.0,0.07026616]
[1773135444474,0.07045581,71169.0,71158.0,0.07026616]
[1773135444656,0.0002,71169.0,71158.0,0.07170616]
[1773135444878,0.0302,71169.0,71159.0,0.45866145]
[1773135445015,0.03699998,71180.0,71162.0,0.03726738]
[1773135445217,0.00144,71182.0,71166.0,0.03726738]
[1773135445426,0.00144,71182.0,71169.0,0.42139407]
[1773135445665,0.00144,71182.0,71167.0,0.00144]
[1773135445666,0.44429497,71180.0,71167.0,0.00144]
[1773135445872,0.03,71177.0,71162.0,0.42139407]
[1773135446077,0.47429497,71177.0,71168.0,0.00144]
[1773135446458,0.47429497,71177.0,71169.0,0.00144]
[1773135446459,0.03,71175.0,71169.0,0.00144]
[1773135446664,0.03,71175.0,71163.0,0.42139407]
[1773135446832,0.47429497,71175.0,71168.0,0.00144]
[1773135447037,0.03,71173.0,71158.0,0.0702661]
[1773135447282,0.51129495,71171.0,71159.0,0.00144]
[1773135447459,0.51129495,71171.0,71160.0,0.00144]
[1773135448036,0.51129495,71171.0,71161.0,0.00144]
[1773135448457,0.03,71169.0,71161.0,0.07170228]
[1773135449089,0.03,71169.0,71161.0,0.00144]
[1773135449533,0.07025432,71170.0,71157.0,0.00144]
[1773135449534,0.03,71165.0,71157.0,0.00144]
[1773135449712,0.03,71165.0,71152.0,0.070492]
[1773135449713,0.03,71165.0,71158.0,0.00144]
[1773135449932,0.03,71165.0,71158.0,0.42283407]
[1773135450140,0.0702533,71173.0,71160.0,0.42139407]
[1773135450458,0.07023754,71187.0,71161.0,0.0702632]
[1773135450742,0.03699998,71183.0,71165.0,0.42139407]
[1773135450995,0.03,71178.0,71165.0,0.42139407]
[1773135451210,0.00144,71177.0,71165.0,0.42139407]
[1773135451390,0.47429497,71178.0,71165.0,0.42139407]
[1773135452654,0.47429497,71178.0,71164.0,0.03870738]
[1773135452655,0.47429497,71176.0,71164.0,0.00144]
[1773135452845,0.03,71174.0,71164.0,0.00144]
[1773135453098,0.03,71170.0,71162.0,0.00144]
[1773135453422,0.03,71170.0,71157.0,0.49166121]
[1773135453626,0.03,71170.0,71158.0,0.42312441]
[1773135453837,0.03,71168.0,71158.0,0.00144]
[1773135454033,0.03,71168.0,71157.0,0.07026691]
[1773135454241,0.07024741,71177.0,71150.0,0.07072332]
[1773135454242,0.03,71164.0,71150.0,0.07072332]
[1773135454459,0.0702632,71161.0,71150.0,0.07072332]
[1773135454673,0.03,71160.0,71152.0,0.00166]
[1773135456176,0.03,71160.0,71152.0,0.00022]